[Event "*** Titled Tuesday Blitz"]
[Site "Chess.com"]
[Date "2019.02.05"]
[Round "5"]
[White "Fins0905"]
[Black "RiskyDecision"]
[Result "1-0"]
[WhiteElo "2629"]
[BlackElo "2427"]
[TimeControl "180+2"]
[EndTime "14:07:32 PST"]
[Termination "Fins0905 won by checkmate"]

1. d4 {[%clk 0:03:01.9]} 1... Nf6 {[%clk 0:02:59.6]} 2. c4 {[%clk 0:03:02.2]}
2... e6 {[%clk 0:02:58.7]} 3. Nf3 {[%clk 0:03:02.8]} 3... d5 {[%clk 0:02:58.3]}
4. Bg5 {[%clk 0:03:02.6]} 4... dxc4 {[%clk 0:02:58.5]} 5. Qa4+ {[%clk
0:03:01.8]} 5... Nbd7 {[%clk 0:02:52.3]} 6. e3 {[%clk 0:03:00.3]} 6... a6 {[%clk
0:02:49]} 7. Bxc4 {[%clk 0:02:56]} 7... Rb8 {[%clk 0:02:49.7]} 8. Be2 {[%clk
0:02:51.3]} 8... b5 {[%clk 0:02:48.8]} 9. Qd1 {[%clk 0:02:52.6]} 9... Bb7 {[%clk
0:02:44.6]} 10. Nbd2 {[%clk 0:02:49.6]} 10... c5 {[%clk 0:02:43.5]} 11. O-O
{[%clk 0:02:45.7]} 11... Be7 {[%clk 0:02:29]} 12. a4 {[%clk 0:02:45]} 12... O-O
{[%clk 0:02:23.5]} 13. h3 {[%clk 0:02:25.5]} 13... Ne4 {[%clk 0:02:14.5]} 14.
Bf4 {[%clk 0:02:17.7]} 14... Rc8 {[%clk 0:02:14.7]} 15. axb5 {[%clk 0:02:17]}
15... axb5 {[%clk 0:02:15.1]} 16. Bxb5 {[%clk 0:02:16.1]} 16... Nxd2 {[%clk
0:02:01.7]} 17. Nxd2 {[%clk 0:01:55.6]} 17... cxd4 {[%clk 0:02:01.6]} 18. exd4
{[%clk 0:01:57.3]} 18... Nf6 {[%clk 0:01:47.1]} 19. Nf3 {[%clk 0:01:42.6]} 19...
Nd5 {[%clk 0:01:44.2]} 20. Bg3 {[%clk 0:01:33.1]} 20... Nb4 {[%clk 0:01:43.4]}
21. b3 {[%clk 0:00:36.7]} 21... Nc2 {[%clk 0:01:39.5]} 22. Rc1 {[%clk
0:00:34.9]} 22... Bxf3 {[%clk 0:01:39.9]} 23. gxf3 {[%clk 0:00:33.8]} 23... Qxd4
{[%clk 0:01:20.4]} 24. Bc4 {[%clk 0:00:28]} 24... Qxd1 {[%clk 0:01:12.2]} 25.
Rfxd1 {[%clk 0:00:29.9]} 25... Nb4 {[%clk 0:01:03.8]} 26. Rd7 {[%clk 0:00:30]}
26... Bg5 {[%clk 0:00:45.1]} 27. Ra1 {[%clk 0:00:21.7]} 27... Rfd8 {[%clk
0:00:39]} 28. Raa7 {[%clk 0:00:21.7]} 28... Rxd7 {[%clk 0:00:37.3]} 29. Rxd7
{[%clk 0:00:23.6]} 29... h5 {[%clk 0:00:27.1]} 30. Bd6 {[%clk 0:00:20.7]} 30...
Nd5 {[%clk 0:00:23.6]} 31. Bxd5 {[%clk 0:00:18.1]} 31... exd5 {[%clk 0:00:24.4]}
32. b4 {[%clk 0:00:19.6]} 32... Rc2 {[%clk 0:00:17.3]} 33. Bc5 {[%clk 0:00:19]}
33... Rb2 {[%clk 0:00:12.5]} 34. Rxd5 {[%clk 0:00:18.8]} 34... Bd2 {[%clk
0:00:12.9]} 35. Rd4 {[%clk 0:00:14.1]} 35... f6 {[%clk 0:00:12.1]} 36. Kf1
{[%clk 0:00:14.8]} 36... Bc3 {[%clk 0:00:12.7]} 37. Rc4 {[%clk 0:00:15.5]} 37...
Bd2 {[%clk 0:00:13.3]} 38. Kg2 {[%clk 0:00:07.5]} 38... Kf7 {[%clk 0:00:13.4]}
39. h4 {[%clk 0:00:08.6]} 39... g5 {[%clk 0:00:10.1]} 40. Kg3 {[%clk 0:00:07.9]}
40... Kg6 {[%clk 0:00:10.2]} 41. Re4 {[%clk 0:00:06.8]} 41... Bf4+ {[%clk
0:00:09.5]} 42. Kg2 {[%clk 0:00:07.9]} 42... Bd2 {[%clk 0:00:07.4]} 43. Kf1
{[%clk 0:00:08.3]} 43... Bc3 {[%clk 0:00:07.5]} 44. Rc4 {[%clk 0:00:06.6]} 44...
Bd2 {[%clk 0:00:08.4]} 45. Be3 {[%clk 0:00:06.5]} 45... Bxb4 {[%clk 0:00:07.4]}
46. hxg5 {[%clk 0:00:05.7]} 46... fxg5 {[%clk 0:00:08.2]} 47. Rc6+ {[%clk
0:00:06.9]} 47... Kf5 {[%clk 0:00:09.3]} 48. Bd4 {[%clk 0:00:05.9]} 48... Rb3
{[%clk 0:00:07.2]} 49. Kg2 {[%clk 0:00:06.1]} 49... Bd2 {[%clk 0:00:07.6]} 50.
Rc5+ {[%clk 0:00:06.6]} 50... Kg6 {[%clk 0:00:08]} 51. Rc6+ {[%clk 0:00:07.1]}
51... Kf5 {[%clk 0:00:08.7]} 52. Rf6# {[%clk 0:00:07.9]} 1-0

[Event "*** Titled Tuesday Blitz"]
[Site "Chess.com"]
[Date "2019.02.05"]
[Round "5"]
[White "Alex_Terzi"]
[Black "Abund"]
[Result "1-0"]
[WhiteElo "2509"]
[BlackElo "2554"]
[TimeControl "180+2"]
[EndTime "14:07:33 PST"]
[Termination "Alex_Terzi won by resignation"]

1. e4 {[%clk 0:03:01.9]} 1... c5 {[%clk 0:02:59.6]} 2. Nf3 {[%clk 0:03:02.5]}
2... Nc6 {[%clk 0:03:00.8]} 3. d4 {[%clk 0:03:03.1]} 3... cxd4 {[%clk 0:03:02]}
4. Nxd4 {[%clk 0:03:04.3]} 4... Nf6 {[%clk 0:03:03.4]} 5. Nc3 {[%clk 0:03:05.3]}
5... e5 {[%clk 0:03:04.5]} 6. Ndb5 {[%clk 0:03:06.4]} 6... d6 {[%clk 0:03:05.7]}
7. Bg5 {[%clk 0:03:07.8]} 7... a6 {[%clk 0:03:06.5]} 8. Na3 {[%clk 0:03:08.6]}
8... b5 {[%clk 0:03:06.8]} 9. Nd5 {[%clk 0:03:10]} 9... Be7 {[%clk 0:03:02.7]}
10. Bxf6 {[%clk 0:03:10.9]} 10... Bxf6 {[%clk 0:03:03.7]} 11. c3 {[%clk
0:03:12.3]} 11... Rb8 {[%clk 0:03:05.1]} 12. Nc2 {[%clk 0:03:13.1]} 12... Bg5
{[%clk 0:03:04.2]} 13. Ncb4 {[%clk 0:03:09.8]} 13... Nxb4 {[%clk 0:02:47.7]} 14.
Nxb4 {[%clk 0:03:04.3]} 14... Bb7 {[%clk 0:02:33.7]} 15. Nd5 {[%clk 0:03:02.8]}
15... O-O {[%clk 0:02:30]} 16. Be2 {[%clk 0:03:02]} 16... f5 {[%clk 0:02:22.9]}
17. exf5 {[%clk 0:02:59.7]} 17... Rxf5 {[%clk 0:02:19.8]} 18. O-O {[%clk
0:02:59.9]} 18... e4 {[%clk 0:02:13.4]} 19. Ne3 {[%clk 0:02:59.9]} 19... Re5
{[%clk 0:02:00.2]} 20. a4 {[%clk 0:02:57]} 20... Bc6 {[%clk 0:01:52.8]} 21. axb5
{[%clk 0:02:51.3]} 21... axb5 {[%clk 0:01:53.9]} 22. Qd4 {[%clk 0:02:48.4]}
22... Re6 {[%clk 0:01:44.1]} 23. Bg4 {[%clk 0:02:34.8]} 23... Rg6 {[%clk
0:01:26.7]} 24. Bf5 {[%clk 0:02:24.9]} 24... Rh6 {[%clk 0:00:48.6]} 25. Bxe4
{[%clk 0:02:22.5]} 25... Rh4 {[%clk 0:00:49.2]} 26. Bd5+ {[%clk 0:02:18.8]}
26... Kh8 {[%clk 0:00:46.8]} 27. f4 {[%clk 0:02:07.8]} 27... Bf6 {[%clk
0:00:38.6]} 28. Qe4 {[%clk 0:01:56.4]} 28... Bd7 {[%clk 0:00:32.3]} 29. Ra6
{[%clk 0:01:44.1]} 29... Qc7 {[%clk 0:00:28.8]} 30. Rfa1 {[%clk 0:01:40.6]}
30... Re8 {[%clk 0:00:20.7]} 31. Ra8 {[%clk 0:01:41.2]} 31... Bd8 {[%clk
0:00:21.5]} 32. Qd4 {[%clk 0:01:34.8]} 32... Qc5 {[%clk 0:00:12.2]} 33. Qxc5
{[%clk 0:01:19.2]} 33... dxc5 {[%clk 0:00:13.4]} 34. g3 {[%clk 0:01:11.1]} 34...
Rh6 {[%clk 0:00:13.6]} 35. h4 {[%clk 0:01:06.7]} 35... Rd6 {[%clk 0:00:14.3]}
36. Kf2 {[%clk 0:01:06.4]} 36... h5 {[%clk 0:00:11.9]} 37. b3 {[%clk 0:00:51.4]}
37... c4 {[%clk 0:00:07.2]} 38. bxc4 {[%clk 0:00:51.4]} 38... bxc4 {[%clk
0:00:05.2]} 39. Bxc4 {[%clk 0:00:45.3]} 39... Rd2+ {[%clk 0:00:06.1]} 40. Be2
{[%clk 0:00:46.6]} 40... Bb5 {[%clk 0:00:06.7]} 41. c4 {[%clk 0:00:45.1]} 41...
Bxc4 {[%clk 0:00:07.6]} 42. Nxc4 {[%clk 0:00:37]} 42... Rexe2+ {[%clk
0:00:08.6]} 43. Kf3 {[%clk 0:00:26.6]} 43... Rf2+ {[%clk 0:00:09.5]} 44. Ke4
{[%clk 0:00:26.9]} 44... Rd7 {[%clk 0:00:10.1]} 45. Ne5 {[%clk 0:00:23.1]} 45...
Re2+ {[%clk 0:00:08.5]} 46. Kf5 {[%clk 0:00:23.3]} 46... Rd5 {[%clk 0:00:09.5]}
47. Rxd8+ {[%clk 0:00:20.6]} 47... Rxd8 {[%clk 0:00:10.7]} 48. Nf7+ {[%clk
0:00:21.8]} 48... Kh7 {[%clk 0:00:08.4]} 49. Nxd8 {[%clk 0:00:23.7]} 49... Re3
{[%clk 0:00:06.1]} 50. Rg1 {[%clk 0:00:24.3]} 50... Kg8 {[%clk 0:00:05.8]} 51.
Ne6 {[%clk 0:00:25.1]} 51... Kf7 {[%clk 0:00:07]} 52. Ng5+ {[%clk 0:00:26.4]}
52... Kg8 {[%clk 0:00:08.3]} 53. Kg6 {[%clk 0:00:26.3]} 53... Re1 {[%clk
0:00:09.6]} 54. Rxe1 {[%clk 0:00:26.5]} 54... Kf8 {[%clk 0:00:10.4]} 55. Re2
{[%clk 0:00:27.7]} 1-0

[Event "*** Titled Tuesday Blitz"]
[Site "Chess.com"]
[Date "2019.02.05"]
[Round "5"]
[White "GremioPrudente"]
[Black "SimonKnightRivendell"]
[Result "1/2-1/2"]
[WhiteElo "2065"]
[BlackElo "2000"]
[TimeControl "180+2"]
[EndTime "14:07:33 PST"]
[Termination "Game drawn by agreement"]

1. Nf3 {[%clk 0:03:01.9]} 1... c6 {[%clk 0:02:58.3]} 2. d4 {[%clk 0:03:01.3]}
2... d5 {[%clk 0:02:58.8]} 3. c4 {[%clk 0:03:01.2]} 3... Nf6 {[%clk 0:02:59.3]}
4. e3 {[%clk 0:03:00.2]} 4... g6 {[%clk 0:03:00.3]} 5. b3 {[%clk 0:02:55.5]}
5... Bg7 {[%clk 0:03:01.2]} 6. Bb2 {[%clk 0:02:56.7]} 6... O-O {[%clk
0:03:02.2]} 7. Be2 {[%clk 0:02:57.4]} 7... Bf5 {[%clk 0:03:02.1]} 8. O-O {[%clk
0:02:57.8]} 8... Nbd7 {[%clk 0:03:02.6]} 9. Nc3 {[%clk 0:02:54.3]} 9... a6
{[%clk 0:03:01.4]} 10. Nh4 {[%clk 0:02:52.4]} 10... Be6 {[%clk 0:03:01.8]} 11.
Nf3 {[%clk 0:02:53.1]} 11... b5 {[%clk 0:03:00.7]} 12. c5 {[%clk 0:02:33.1]}
12... Bg4 {[%clk 0:03:01.6]} 13. b4 {[%clk 0:02:13.4]} 13... Bxf3 {[%clk
0:03:00.9]} 14. Bxf3 {[%clk 0:02:13.9]} 14... e5 {[%clk 0:02:53.7]} 15. g3
{[%clk 0:02:09.9]} 15... Qe7 {[%clk 0:02:49.9]} 16. Re1 {[%clk 0:01:55.9]} 16...
e4 {[%clk 0:02:49.7]} 17. Bg2 {[%clk 0:01:52.5]} 17... Ne8 {[%clk 0:02:50.3]}
18. a4 {[%clk 0:01:45.1]} 18... Nc7 {[%clk 0:02:50]} 19. axb5 {[%clk 0:01:45.3]}
19... axb5 {[%clk 0:02:50.9]} 20. Qb3 {[%clk 0:01:28.9]} 20... Kh8 {[%clk
0:02:49.4]} 21. Rxa8 {[%clk 0:01:28.3]} 21... Rxa8 {[%clk 0:02:49.2]} 22. Ra1
{[%clk 0:01:29.9]} 22... Rxa1+ {[%clk 0:02:47.5]} 23. Bxa1 {[%clk 0:01:31]}
23... Qd8 {[%clk 0:02:47.5]} 24. Qa3 {[%clk 0:01:27.4]} 24... Qa8 {[%clk
0:02:48.2]} 25. Qxa8+ {[%clk 0:01:25.9]} 25... Nxa8 {[%clk 0:02:49.1]} 26. Bh3
{[%clk 0:01:21.2]} 26... f5 {[%clk 0:02:45.9]} 27. Bf1 {[%clk 0:01:19.7]} 27...
Nc7 {[%clk 0:02:45.2]} 28. Ne2 {[%clk 0:01:10]} 28... Na6 {[%clk 0:02:45.8]} 29.
Bc3 {[%clk 0:01:10.5]} 29... g5 {[%clk 0:02:43.8]} 30. Bh3 {[%clk 0:01:07.3]}
30... g4 {[%clk 0:02:41.9]} 31. Bf1 {[%clk 0:01:06.2]} 31... Bh6 {[%clk
0:02:38.3]} 32. h3 {[%clk 0:00:58.5]} 32... Nf8 {[%clk 0:02:33.2]} 33. h4 {[%clk
0:00:47.3]} 33... Ne6 {[%clk 0:02:24.8]} 34. Nc1 {[%clk 0:00:46]} 34... Bg7
{[%clk 0:02:17.2]} 35. Nb3 {[%clk 0:00:46.4]} 35... Bf6 {[%clk 0:02:13.2]} 36.
Na5 {[%clk 0:00:45.7]} 36... Nb8 {[%clk 0:02:12.1]} 37. Nb7 {[%clk 0:00:44]}
37... Kg7 {[%clk 0:02:08.5]} 38. Nd6 {[%clk 0:00:44.8]} 38... Kg6 {[%clk
0:02:09.2]} 39. Be2 {[%clk 0:00:34.8]} 39... Be7 {[%clk 0:02:09.7]} 40. Nc8
{[%clk 0:00:26.3]} 40... Bf8 {[%clk 0:02:08.8]} 41. Nb6 {[%clk 0:00:18.5]} 41...
Kf7 {[%clk 0:02:09.6]} 42. Kf1 {[%clk 0:00:17.7]} 42... Ke8 {[%clk 0:02:10.4]}
43. Ke1 {[%clk 0:00:18.3]} 43... Be7 {[%clk 0:02:10.7]} 44. Nc8 {[%clk
0:00:18.2]} 44... Kd7 {[%clk 0:02:05.6]} 45. Nxe7 {[%clk 0:00:17.1]} 45... Kxe7
{[%clk 0:02:06.5]} 46. Kd2 {[%clk 0:00:18.1]} 46... Kf6 {[%clk 0:01:58.9]} 47.
Bf1 {[%clk 0:00:19.1]} 47... Kg6 {[%clk 0:01:59]} 48. Be2 {[%clk 0:00:20.2]}
48... Kh5 {[%clk 0:01:59.9]} 49. Bf1 {[%clk 0:00:20.9]} 49... Nf8 {[%clk
0:01:59.7]} 50. Ke2 {[%clk 0:00:19.7]} 50... Ng6 {[%clk 0:02:00.6]} 51. Be1
{[%clk 0:00:17.9]} 51... Na6 {[%clk 0:02:00.5]} 52. Bg2 {[%clk 0:00:15.7]} 52...
Nf8 {[%clk 0:01:40.2]} 53. Bf1 {[%clk 0:00:16.6]} 53... Ne6 {[%clk 0:01:40.6]}
54. Kd1 {[%clk 0:00:14.8]} 54... Kg6 {[%clk 0:01:38.5]} 55. Kc2 {[%clk
0:00:15.8]} 55... Kh5 {[%clk 0:01:34.2]} 56. Kb3 {[%clk 0:00:16.1]} 56... f4
{[%clk 0:01:32.8]} 57. Kc3 {[%clk 0:00:10.2]} 57... fxg3 {[%clk 0:01:29.4]} 58.
fxg3 {[%clk 0:00:10.7]} 58... Ng7 {[%clk 0:01:30.3]} 59. Be2 {[%clk 0:00:04.9]}
59... Nf5 {[%clk 0:01:30.4]} 60. Bf2 {[%clk 0:00:04.5]} 60... h6 {[%clk
0:01:28.9]} 61. Kb3 {[%clk 0:00:04.8]} 61... Ng7 {[%clk 0:01:24.4]} 62. Kc3
{[%clk 0:00:06]} 62... Ne8 {[%clk 0:01:25.3]} 63. Kb3 {[%clk 0:00:07.2]} 63...
Nf6 {[%clk 0:01:26.5]} 64. Kc3 {[%clk 0:00:08.4]} 64... Kg6 {[%clk 0:01:27.6]}
65. Kb3 {[%clk 0:00:09.6]} 65... h5 {[%clk 0:01:28.5]} 66. Kc3 {[%clk
0:00:10.7]} 1/2-1/2

[Event "*** Titled Tuesday Blitz"]
[Site "Chess.com"]
[Date "2019.02.05"]
[Round "5"]
[White "sergeikim"]
[Black "maciek_92"]
[Result "0-1"]
[WhiteElo "2467"]
[BlackElo "2741"]
[TimeControl "180+2"]
[EndTime "14:07:35 PST"]
[Termination "maciek_92 won on time"]

1. d4 {[%clk 0:02:58.1]} 1... Nf6 {[%clk 0:03:00.5]} 2. c4 {[%clk 0:02:59.2]}
2... e6 {[%clk 0:03:02]} 3. Nc3 {[%clk 0:03:00.1]} 3... Bb4 {[%clk 0:03:02.4]}
4. Qc2 {[%clk 0:03:00.9]} 4... b6 {[%clk 0:03:01.6]} 5. a3 {[%clk 0:03:01.9]}
5... Bxc3+ {[%clk 0:03:01.6]} 6. Qxc3 {[%clk 0:03:03.5]} 6... Bb7 {[%clk
0:03:03.2]} 7. Nf3 {[%clk 0:03:04.4]} 7... O-O {[%clk 0:03:03.3]} 8. g3 {[%clk
0:03:05.5]} 8... d6 {[%clk 0:03:02.7]} 9. Bg2 {[%clk 0:03:06.4]} 9... Nbd7
{[%clk 0:03:04]} 10. O-O {[%clk 0:03:06.8]} 10... Qe7 {[%clk 0:03:03.3]} 11. b3
{[%clk 0:03:07.6]} 11... Rae8 {[%clk 0:02:54.8]} 12. Bb2 {[%clk 0:03:08.2]}
12... h6 {[%clk 0:02:54.8]} 13. Rfe1 {[%clk 0:03:07.9]} 13... Ba8 {[%clk
0:02:52.1]} 14. Rad1 {[%clk 0:03:07.3]} 14... Ne4 {[%clk 0:02:52.9]} 15. Qc2
{[%clk 0:03:07.6]} 15... f5 {[%clk 0:02:54.3]} 16. Nh4 {[%clk 0:03:03.2]} 16...
Qf7 {[%clk 0:02:53.6]} 17. f4 {[%clk 0:02:49.1]} 17... Ndf6 {[%clk 0:02:51.4]}
18. d5 {[%clk 0:02:36.2]} 18... Qh5 {[%clk 0:02:46.2]} 19. Bxf6 {[%clk
0:02:22.8]} 19... Nxf6 {[%clk 0:02:41.7]} 20. dxe6 {[%clk 0:02:18.1]} 20... Bxg2
{[%clk 0:02:38.4]} 21. Kxg2 {[%clk 0:02:11.8]} 21... Rxe6 {[%clk 0:02:27.3]} 22.
Qxf5 {[%clk 0:02:07.1]} 22... Rxe2+ {[%clk 0:02:22.8]} 23. Kg1 {[%clk
0:01:58.1]} 23... Qxf5 {[%clk 0:02:17.1]} 24. Nxf5 {[%clk 0:01:58.4]} 24... Rfe8
{[%clk 0:02:19]} 25. Kf1 {[%clk 0:01:50.6]} 25... R2e4 {[%clk 0:02:12.6]} 26.
Rxe4 {[%clk 0:01:43.3]} 26... Rxe4 {[%clk 0:02:14.1]} 27. Re1 {[%clk 0:01:42.8]}
27... Kf7 {[%clk 0:02:13.1]} 28. Rxe4 {[%clk 0:01:40.5]} 28... Nxe4 {[%clk
0:02:15]} 29. Ke2 {[%clk 0:01:40.5]} 29... h5 {[%clk 0:02:14.5]} 30. Nd4 {[%clk
0:01:36.7]} 30... a6 {[%clk 0:02:13.3]} 31. Kd3 {[%clk 0:01:32.3]} 31... Nf2+
{[%clk 0:02:12.6]} 32. Ke2 {[%clk 0:01:32.5]} 32... Ng4 {[%clk 0:02:12.5]} 33.
h3 {[%clk 0:01:30.3]} 33... Nf6 {[%clk 0:02:14]} 34. Kf3 {[%clk 0:01:25]} 34...
g6 {[%clk 0:02:11.9]} 35. g4 {[%clk 0:01:25.8]} 35... c5 {[%clk 0:02:12.7]} 36.
Nc6 {[%clk 0:01:16.9]} 36... hxg4+ {[%clk 0:01:57.7]} 37. hxg4 {[%clk
0:01:16.8]} 37... Ke6 {[%clk 0:01:59.1]} 38. Nb8 {[%clk 0:01:13]} 38... a5
{[%clk 0:01:59.6]} 39. Nc6 {[%clk 0:01:12.4]} 39... Kd7 {[%clk 0:01:54.4]} 40.
Na7 {[%clk 0:01:12.5]} 40... a4 {[%clk 0:01:34.6]} 41. bxa4 {[%clk 0:01:09.2]}
41... d5 {[%clk 0:00:52.7]} 42. cxd5 {[%clk 0:00:50]} 42... Nxd5 {[%clk
0:00:53.4]} 43. Nb5 {[%clk 0:00:46.7]} 43... Kc6 {[%clk 0:00:41.1]} 44. Ke4
{[%clk 0:00:38.4]} 44... Nf6+ {[%clk 0:00:41.7]} 45. Kf3 {[%clk 0:00:38.8]}
45... Kd5 {[%clk 0:00:36.2]} 46. f5 {[%clk 0:00:22.7]} 46... g5 {[%clk
0:00:21.3]} 47. Kg3 {[%clk 0:00:10.4]} 47... Ke4 {[%clk 0:00:16.2]} 48. Nd6+
{[%clk 0:00:09.4]} 48... Kd3 {[%clk 0:00:14.9]} 49. Nf7 {[%clk 0:00:04.6]} 49...
c4 {[%clk 0:00:15.6]} 0-1

[Event "*** Titled Tuesday Blitz"]
[Site "Chess.com"]
[Date "2019.02.05"]
[Round "5"]
[White "Sebastian"]
[Black "MITerryble"]
[Result "1-0"]
[WhiteElo "2893"]
[BlackElo "2792"]
[TimeControl "180+2"]
[EndTime "14:07:39 PST"]
[Termination "Sebastian won by resignation"]

1. e4 {[%clk 0:03:01.9]} 1... e6 {[%clk 0:03:00.2]} 2. d4 {[%clk 0:03:02.7]}
2... d5 {[%clk 0:03:01.3]} 3. Nc3 {[%clk 0:03:04.4]} 3... Nf6 {[%clk 0:03:01.9]}
4. e5 {[%clk 0:03:05.1]} 4... Nfd7 {[%clk 0:03:02.6]} 5. Nce2 {[%clk 0:03:06.8]}
5... c5 {[%clk 0:03:02.8]} 6. c3 {[%clk 0:03:08.5]} 6... cxd4 {[%clk 0:03:03.1]}
7. cxd4 {[%clk 0:03:09]} 7... f6 {[%clk 0:03:03.7]} 8. Nf4 {[%clk 0:03:00.6]}
8... Bb4+ {[%clk 0:03:03.5]} 9. Bd2 {[%clk 0:03:00.8]} 9... Qb6 {[%clk
0:03:04.4]} 10. Bxb4 {[%clk 0:02:46.6]} 10... Qxb4+ {[%clk 0:03:06.3]} 11. Qd2
{[%clk 0:02:48]} 11... Qxd2+ {[%clk 0:03:07.3]} 12. Kxd2 {[%clk 0:02:49.1]}
12... Ke7 {[%clk 0:03:09.2]} 13. exf6+ {[%clk 0:02:45.1]} 13... gxf6 {[%clk
0:03:11.1]} 14. Re1 {[%clk 0:02:45.2]} 14... Nb6 {[%clk 0:03:12]} 15. Nf3 {[%clk
0:02:37.3]} 15... Bd7 {[%clk 0:03:12.8]} 16. Bd3 {[%clk 0:02:27]} 16... Nc6
{[%clk 0:03:09.9]} 17. b3 {[%clk 0:02:11.7]} 17... Kd6 {[%clk 0:03:09.5]} 18.
Nh5 {[%clk 0:02:11.3]} 18... Raf8 {[%clk 0:03:08.4]} 19. Bb5 {[%clk 0:01:58.4]}
19... e5 {[%clk 0:02:48.1]} 20. Bxc6 {[%clk 0:01:24.3]} 20... bxc6 {[%clk
0:02:20.9]} 21. h3 {[%clk 0:00:54.7]} 21... e4 {[%clk 0:01:38.9]} 22. Nh4 {[%clk
0:00:55.2]} 22... Rhg8 {[%clk 0:01:39.6]} 23. Nf4 {[%clk 0:00:55.7]} 23... Nc8
{[%clk 0:01:26.8]} 24. Rc1 {[%clk 0:00:46.3]} 24... Ne7 {[%clk 0:01:26.8]} 25.
g3 {[%clk 0:00:46]} 25... Rb8 {[%clk 0:01:13.5]} 26. Rc5 {[%clk 0:00:44.8]}
26... Rb4 {[%clk 0:01:12.6]} 27. Kc3 {[%clk 0:00:45]} 27... Rb6 {[%clk
0:01:07.1]} 28. Ra5 {[%clk 0:00:44.4]} 28... Rb7 {[%clk 0:00:57]} 29. Rc1 {[%clk
0:00:43.8]} 29... Ng6 {[%clk 0:00:48.5]} 30. Nhg2 {[%clk 0:00:33.1]} 30... Nh8
{[%clk 0:00:38.9]} 31. Ne3 {[%clk 0:00:32]} 31... Ng6 {[%clk 0:00:37.3]} 32.
Neg2 {[%clk 0:00:26.6]} 32... Ne7 {[%clk 0:00:38.1]} 33. h4 {[%clk 0:00:17.6]}
33... Nf5 {[%clk 0:00:36.8]} 34. Re1 {[%clk 0:00:16.7]} 34... Rgb8 {[%clk
0:00:33.8]} 35. Ne3 {[%clk 0:00:16.2]} 35... Ne7 {[%clk 0:00:27.3]} 36. Rc1
{[%clk 0:00:16.2]} 36... Ng6 {[%clk 0:00:24.6]} 37. Nxg6 {[%clk 0:00:16.6]}
37... hxg6 {[%clk 0:00:24.6]} 38. Rb1 {[%clk 0:00:16.6]} 38... Rf8 {[%clk
0:00:25]} 39. b4 {[%clk 0:00:16.6]} 39... g5 {[%clk 0:00:26]} 40. hxg5 {[%clk
0:00:14.9]} 40... fxg5 {[%clk 0:00:27.1]} 41. Rb2 {[%clk 0:00:15.7]} 41... Rf3
{[%clk 0:00:26.4]} 42. Ra6 {[%clk 0:00:15.9]} 42... Kc7 {[%clk 0:00:25.2]} 43.
a4 {[%clk 0:00:14.8]} 43... Kb8 {[%clk 0:00:23.3]} 44. Ra5 {[%clk 0:00:11.9]}
44... Be8 {[%clk 0:00:19.7]} 45. Rc5 {[%clk 0:00:11.9]} 45... Rbf7 {[%clk
0:00:19.1]} 46. b5 {[%clk 0:00:12.8]} 46... cxb5 {[%clk 0:00:18.1]} 47. Rxd5
{[%clk 0:00:12.6]} 47... Rc7+ {[%clk 0:00:16.4]} 48. Kb4 {[%clk 0:00:11.8]}
48... Rxf2 {[%clk 0:00:17.3]} 49. Rxf2 {[%clk 0:00:12.1]} 49... bxa4 {[%clk
0:00:16.6]} 50. Rd8+ {[%clk 0:00:12.8]} 50... Rc8 {[%clk 0:00:17.3]} 51. Rxc8+
{[%clk 0:00:13.8]} 51... Kxc8 {[%clk 0:00:19.2]} 52. Rf5 {[%clk 0:00:14.6]} 1-0

[Event "*** Titled Tuesday Blitz"]
[Site "Chess.com"]
[Date "2019.02.05"]
[Round "5"]
[White "chenrip"]
[Black "riconaipe"]
[Result "1-0"]
[WhiteElo "2326"]
[BlackElo "2433"]
[TimeControl "180+2"]
[EndTime "14:07:48 PST"]
[Termination "chenrip won on time"]

1. e4 {[%clk 0:03:01.9]} 1... c6 {[%clk 0:02:58.4]} 2. d4 {[%clk 0:03:02.3]}
2... d5 {[%clk 0:03:00.1]} 3. e5 {[%clk 0:03:03.9]} 3... c5 {[%clk 0:02:52.8]}
4. c3 {[%clk 0:03:03.8]} 4... Nc6 {[%clk 0:02:53.8]} 5. Bb5 {[%clk 0:03:03.9]}
5... g6 {[%clk 0:02:52.7]} 6. Ne2 {[%clk 0:03:02.6]} 6... Bg7 {[%clk 0:02:53.6]}
7. O-O {[%clk 0:03:03]} 7... f6 {[%clk 0:02:53]} 8. f4 {[%clk 0:02:59.9]} 8...
Nh6 {[%clk 0:02:52.6]} 9. exf6 {[%clk 0:02:49.4]} 9... exf6 {[%clk 0:02:53.2]}
10. dxc5 {[%clk 0:02:48.1]} 10... O-O {[%clk 0:02:54.3]} 11. Be3 {[%clk
0:02:42]} 11... Bg4 {[%clk 0:02:45.3]} 12. h3 {[%clk 0:02:30.7]} 12... Qe7
{[%clk 0:02:45.7]} 13. Bf2 {[%clk 0:02:26.5]} 13... Be6 {[%clk 0:02:31.2]} 14.
Nd2 {[%clk 0:02:22]} 14... a6 {[%clk 0:02:23.4]} 15. Bxc6 {[%clk 0:02:22.5]}
15... bxc6 {[%clk 0:02:24.2]} 16. Nd4 {[%clk 0:02:23.6]} 16... Bd7 {[%clk
0:02:25.3]} 17. b4 {[%clk 0:02:21.3]} 17... Nf5 {[%clk 0:02:22.1]} 18. Re1
{[%clk 0:02:17.7]} 18... Qf7 {[%clk 0:02:21.8]} 19. N2f3 {[%clk 0:02:16.8]}
19... Rfc8 {[%clk 0:02:12.5]} 20. g4 {[%clk 0:02:03.8]} 20... Ne7 {[%clk
0:02:05.7]} 21. Kg2 {[%clk 0:01:59.3]} 21... h5 {[%clk 0:02:01.6]} 22. gxh5
{[%clk 0:01:53.1]} 22... gxh5 {[%clk 0:02:02.5]} 23. Nh4 {[%clk 0:01:53.9]}
23... Kh7 {[%clk 0:02:00.4]} 24. Kh2 {[%clk 0:01:52]} 24... Bh6 {[%clk
0:01:59.8]} 25. Qf3 {[%clk 0:01:40.7]} 25... Rg8 {[%clk 0:01:51]} 26. f5 {[%clk
0:01:33.6]} 26... Rg7 {[%clk 0:01:22.7]} 27. Rg1 {[%clk 0:01:29.7]} 27... Rag8
{[%clk 0:01:21.2]} 28. Rxg7+ {[%clk 0:01:30.4]} 28... Rxg7 {[%clk 0:01:22.4]}
29. Re1 {[%clk 0:01:28]} 29... Bg5 {[%clk 0:01:22.8]} 30. Ng6 {[%clk 0:01:27.7]}
30... Nxg6 {[%clk 0:01:22.3]} 31. Qxh5+ {[%clk 0:01:28.6]} 31... Kg8 {[%clk
0:01:10.7]} 32. fxg6 {[%clk 0:01:29.3]} 32... Bf4+ {[%clk 0:01:11.6]} 33. Kh1
{[%clk 0:01:25.7]} 33... Rxg6 {[%clk 0:01:12.1]} 34. Qf3 {[%clk 0:01:16.7]}
34... Qh7 {[%clk 0:00:45.3]} 35. Rg1 {[%clk 0:01:06]} 35... Bg5 {[%clk
0:00:44.7]} 36. Nf5 {[%clk 0:00:55.5]} 36... Kh8 {[%clk 0:00:34.6]} 37. Bd4
{[%clk 0:00:53.2]} 37... Kg8 {[%clk 0:00:18.7]} 38. Rg3 {[%clk 0:00:39.7]} 38...
Kf8 {[%clk 0:00:19.8]} 39. Nd6 {[%clk 0:00:30.9]} 39... Rh6 {[%clk 0:00:17.7]}
40. Kg2 {[%clk 0:00:24.4]} 40... Qc2+ {[%clk 0:00:16.5]} 41. Qf2 {[%clk
0:00:22.8]} 41... Qg6 {[%clk 0:00:09.3]} 42. Qe2 {[%clk 0:00:15.6]} 42... Rh4
{[%clk 0:00:07.5]} 43. Qxa6 {[%clk 0:00:12.9]} 43... Qh5 {[%clk 0:00:07.1]} 44.
Qa8+ {[%clk 0:00:13.3]} 44... Ke7 {[%clk 0:00:08.5]} 45. Qg8 {[%clk 0:00:12.5]}
45... Rxh3 {[%clk 0:00:06.5]} 46. Qg7+ {[%clk 0:00:12.1]} 46... Kd8 {[%clk
0:00:07.8]} 47. Bxf6+ {[%clk 0:00:11.3]} 47... Bxf6 {[%clk 0:00:09.7]} 48. Qxf6+
{[%clk 0:00:12.6]} 48... Kc7 {[%clk 0:00:11.2]} 49. Nb5+ {[%clk 0:00:12.5]}
49... Kb7 {[%clk 0:00:09.5]} 50. Nd6+ {[%clk 0:00:13.2]} 50... Ka7 {[%clk
0:00:09.8]} 51. Qe7 {[%clk 0:00:10.6]} 51... Qe2+ {[%clk 0:00:08.6]} 52. Qxe2
{[%clk 0:00:10.4]} 1-0